[Event "12th Arad Open 2019"]
[Site "Arad"]
[Date "2019.07.24"]
[Round "1.7"]
[White "Dracea, Gheorghe"]
[Black "Song, Raymond"]
[Result "0-1"]
[ECO "B18"]
[WhiteElo "1878"]
[BlackElo "2456"]
[Annotator "RC"]
[PlyCount "58"]
[EventDate "2019.07.24"]
[EventType "swiss"]
[EventCountry "ROU"]
[SourceTitle "playchess.com"]
[Source "ChessBase"]
[SourceQuality "1"]
[TimeControl "40/5400+30:900+30"]

1. e4 c6 2. d4 {[%emt 0:03:45]} d5 {[%emt 0:00:05]} 3. Nc3 {[%emt 0:01:34]} dxe4 {[%emt 0:00:05]} 4. Nxe4 {[%emt 0:00:02]} Bf5 {[%emt 0:00:09]} 5. Ng3 {[%emt 0:00:03]} Bg6 {[%emt 0:00:05]} 6. N1e2 {[%emt 0:03:26]} Nf6 {[%emt 0:00:07]} 7. Nf4 {[%emt 0:00:56]} e5 {[%emt 0:00:07]} 8. Nxg6 {[%emt 0:04:59]} hxg6 {[%emt 0:00:06]} 9. Be3 {[%emt 0:00:27]} Nbd7 {[%emt 0:00:09]} 10. Bc4 {[%emt 0:22:38]} Qc7 {[%emt 0:06:33]} 11. Qe2 {[%emt 0:02:27]} Bd6 {[%emt 0:03:10]} 12. O-O-O {[%emt 0:07:00]} O-O {[%emt 0:00:45]} 13. Qd3 {[%emt 0:13:09]} Nb6 {[%emt 0:10:43]} 14. Bb3 {[%emt 0:08:33]} Nbd5 {[%emt 0:03:43]} 15. dxe5 {[%emt 0:01:23]} Bxe5 {[%emt 0:00:18]} 16. Bc5 {[%emt 0:08:05]} Rfd8 {[%emt 0:02:53]} 17. Qf3 {[%emt 0:02:50]} a5 {[%emt 0:05:26]} 18. Ne4 {[%emt 0:05:25]} Nxe4 {[%emt 0:09:08]} 19. Qxe4 {[%emt 0:00:06]} a4 {[%emt 0:00:02]} 20. Bc4 {[%emt 0:04:19]} Nf6 {[%emt 0:02:39]} 21. Qh4 b6 {[%emt 0:04:27]} 22. Be3 {[%emt 0:04:55]} b5 {[%emt 0:00:39]} 23. Bd3 {[%emt 0:01:20]} a3 {[%emt 0:00:17]} 24. b3 {[%emt 0:00:17]} Nd5 {[%emt 0:00:21]} 25. Bd4 {[%emt 0:01:49]} Bxd4 {[%emt 0:00:54]} 26. Qxd4 {[%emt 0:00:01]} c5 {[%emt 0:00:30]} 27. Qe4 {[%emt 0:02:34]} Qe5 {[%emt 0:00:52]} 28. Kd2 {[%emt 0:00:02]} Qc3+ {[%emt 0:00:05]} 29. Kc1 {[%emt 0:00:18]} Nb4 {[%emt 0:00:04]} 0-1

[Event "12th Arad Open 2019"]
[Site "Arad"]
[Date "2019.07.24"]
[Round "1.10"]
[White "Costachi, Mihnea"]
[Black "Denes, Attila-Norbert"]
[Result "1-0"]
[ECO "A61"]
[WhiteElo "2471"]
[BlackElo "1886"]
[Annotator "RC"]
[PlyCount "47"]
[EventDate "2019.07.24"]
[EventType "swiss"]
[EventCountry "ROU"]
[SourceTitle "playchess.com"]
[Source "ChessBase"]
[SourceQuality "1"]
[TimeControl "40/5400+30:900+30"]

1. d4 {[%emt 0:00:00]} Nf6 {[%emt 0:00:00]} 2. c4 {[%emt 0:00:00]} c5 {[%emt 0:00:00]} 3. d5 {[%emt 0:00:00]} e6 {[%emt 0:00:00]} 4. Nc3 {[%emt 0:00:04]} exd5 {[%emt 0:00:02]} 5. cxd5 {[%emt 0:00:06]} d6 {[%emt 0:00:14]} 6. Nf3 {[%emt 0:00:34]} g6 {[%emt 0:02:35]} 7. Nd2 {[%emt 0:00:31]} Bg7 {[%emt 0:02:08]} 8. e4 {[%emt 0:00:05]} O-O {[%emt 0:02:43]} 9. Be2 {[%emt 0:00:06]} Na6 {[%emt 0:01:45]} 10. Bxa6 {[%emt 0:01:42]} bxa6 {[%emt 0:00:11]} 11. O-O {[%emt 0:00:13]} Rb8 {[%emt 0:02:25]} 12. Nc4 {[%emt 0:01:43]} Qe7 {[%emt 0:03:16]} 13. Bf4 {[%emt 0:13:30]} Ne8 {[%emt 0:09:37]} 14. Re1 {[%emt 0:01:19]} Be5 {[%emt 0:03:52]} 15. Bxe5 {[%emt 0:17:18]} dxe5 {[%emt 0:00:17]} 16. d6 {[%emt 0:00:05]} Qe6 {[%emt 0:03:07]} 17. b3 {[%emt 0:01:16]} Nf6 {[%emt 0:05:34]} 18. Nd5 {[%emt 0:01:39]} Nd7 {[%emt 0:09:09]} 19. Qd2 {[%emt 0:18:21]} Bb7 {[%emt 0:12:24]} 20. Nc7 {[%emt 0:03:10]} Qf6 {[%emt 0:01:30]} 21. Rad1 {[%emt 0:01:28]} Kg7 {[%emt 0:06:09]} 22. Qa5 {[%emt 0:01:44]} Qd8 {[%emt 0:05:07]} 23. Qa3 {[%emt 0:00:43]} f5 {[%emt 0:11:13]} 24. Ne6+ {[%emt 0:00:07]} 1-0

[Event "12th Arad Open 2019"]
[Site "Arad"]
[Date "2019.07.25"]
[Round "2.7"]
[White "Har-Even, Abir"]
[Black "Gorodetzky, David"]
[Result "0-1"]
[ECO "C00"]
[WhiteElo "2083"]
[BlackElo "2461"]
[Annotator "RC"]
[PlyCount "58"]
[EventDate "2019.07.24"]
[EventType "swiss"]
[EventCountry "ROU"]
[SourceTitle "playchess.com"]
[Source "ChessBase"]
[SourceQuality "1"]
[TimeControl "40/5400+30:900+30"]

1. e4 {[%emt 0:00:00]} e6 {[%emt 0:00:00]} 2. d3 {[%emt 0:00:00]} d5 {[%emt 0:00:00]} 3. Nd2 {[%emt 0:00:00]} Nf6 {[%emt 0:00:29]} 4. Ngf3 {[%emt 0:00:01]} Be7 {[%emt 0:00:42]} 5. g3 {[%emt 0:00:23]} O-O {[%emt 0:00:34]} 6. Bg2 {[%emt 0:00:36]} c5 {[%emt 0:02:12]} 7. e5 {[%emt 0:00:30]} Nfd7 {[%emt 0:00:08]} 8. O-O {[%emt 0:00:07]} Nc6 {[%emt 0:00:04]} 9. Re1 {[%emt 0:00:06]} b5 {[%emt 0:03:15]} 10. h4 {[%emt 0:03:57]} b4 {[%emt 0:03:26]} 11. Nf1 {[%emt 0:01:54]} a5 {[%emt 0:05:38]} 12. N1h2 {[%emt 0:04:16]} Re8 {[%emt 0:09:24]} 13. Bf4 {[%emt 0:07:01]} Bf8 {[%emt 0:07:53]} 14. h5 {[%emt 0:07:40]} h6 {[%emt 0:00:12]} 15. Ng4 {[%emt 0:01:08]} Ba6 {[%emt 0:01:31]} 16. Qd2 {[%emt 0:15:28]} Qe7 {[%emt 0:00:06]} 17. Ne3 {[%emt 0:13:13]} Rac8 {[%emt 0:02:58]} 18. g4 {[%emt 0:05:55]} f6 {[%emt 0:01:40]} 19. exf6 Qxf6 {[%emt 0:00:15]} 20. Nd1 {[%emt 0:10:37]} Qf7 {[%emt 0:10:58]} 21. Nh4 {[%emt 0:09:01]} Nf6 {[%emt 0:01:31]} 22. f3 {[%emt 0:04:30]} Nxh5 {[%emt 0:15:05]} 23. gxh5 {[%emt 0:01:05]} Qxh5 {[%emt 0:00:02]} 24. Bh3 {[%emt 0:12:42]} Qxh4 {[%emt 0:00:44]} 25. Bxe6+ {[%emt 0:00:33]} Rxe6 {[%emt 0:08:49]} 26. Rxe6 {[%emt 0:00:03]} Nd4 {[%emt 0:00:07]} 27. Qe3 {[%emt 0:00:17]} Bb5 {[%emt 0:01:57]} 28. Rc1 {[%emt 0:01:37]} Qh3 {[%emt 0:03:22]} 29. Kf2 {[%emt 0:00:39]} Qxe6 0-1

[Event "12th Arad Open 2019"]
[Site "Arad"]
[Date "2019.07.25"]
[Round "2.10"]
[White "David, Alexandru-Vasile"]
[Black "Visanescu, Daria-Ioana"]
[Result "1-0"]
[ECO "D35"]
[WhiteElo "2428"]
[BlackElo "2079"]
[Annotator "RC"]
[PlyCount "67"]
[EventDate "2019.07.24"]
[EventType "swiss"]
[EventCountry "ROU"]
[SourceTitle "playchess.com"]
[Source "ChessBase"]
[SourceQuality "1"]
[TimeControl "40/5400+30:900+30"]

1. d4 {[%emt 0:00:00]} d5 {[%emt 0:00:03]} 2. c4 {[%emt 0:03:09]} e6 {[%emt 0:01:13]} 3. Nc3 {[%emt 0:00:08]} Nf6 {[%emt 0:00:06]} 4. cxd5 {[%emt 0:01:29]} exd5 {[%emt 0:00:05]} 5. Bg5 {[%emt 0:00:07]} Be7 {[%emt 0:00:05]} 6. e3 {[%emt 0:00:22]} O-O {[%emt 0:00:26]} 7. Bd3 {[%emt 0:00:10]} Nbd7 {[%emt 0:01:07]} 8. Nge2 {[%emt 0:00:32]} Re8 {[%emt 0:00:55]} 9. O-O {[%emt 0:00:09]} Nf8 {[%emt 0:00:15]} 10. b4 {[%emt 0:03:46]} h6 {[%emt 0:09:26]} 11. Bxf6 {[%emt 0:02:23]} Bxf6 {[%emt 0:00:15]} 12. b5 {[%emt 0:00:07]} Ne6 {[%emt 0:09:22]} 13. Rc1 {[%emt 0:02:20]} g6 {[%emt 0:10:05]} 14. Qc2 {[%emt 0:06:01]} c6 {[%emt 0:11:22]} 15. bxc6 {[%emt 0:05:44]} bxc6 {[%emt 0:00:25]} 16. Rb1 {[%emt 0:01:09]} Kg7 {[%emt 0:09:10]} 17. Na4 {[%emt 0:13:40]} Qc7 {[%emt 0:02:02]} 18. Rfc1 {[%emt 0:02:54]} Bd7 {[%emt 0:00:08]} 19. Nc5 {[%emt 0:01:04]} Nxc5 {[%emt 0:01:50]} 20. Qxc5 {[%emt 0:03:17]} Be7 {[%emt 0:00:45]} 21. Qxd5 {[%emt 0:04:51]} Bd6 {[%emt 0:01:47]} 22. Qf3 {[%emt 0:02:51]} Bxh2+ {[%emt 0:02:09]} 23. Kh1 {[%emt 0:00:05]} Bd6 {[%emt 0:00:43]} 24. e4 {[%emt 0:03:19]} f6 {[%emt 0:02:37]} 25. Qe3 {[%emt 0:04:07]} Ba3 {[%emt 0:04:11]} 26. Rd1 {[%emt 0:05:16]} c5 {[%emt 0:01:22]} 27. Bc4 {[%emt 0:01:44]} Bb4 {[%emt 0:10:07]} 28. a3 {[%emt 0:02:50]} Ba5 {[%emt 0:00:12]} 29. dxc5 {[%emt 0:00:06]} Bc6 {[%emt 0:00:33]} 30. Nd4 {[%emt 0:03:54]} Bd7 {[%emt 0:05:56]} 31. c6 {[%emt 0:00:58]} Bc8 {[%emt 0:00:45]} 32. Ne6+ {[%emt 0:04:16]} Rxe6 {[%emt 0:05:06]} 33. Bxe6 {[%emt 0:00:54]} Bb6 {[%emt 0:00:26]} 34. Rxb6 {[%emt 0:01:05]} 1-0

[Event "12th Arad Open 2019"]
[Site "Arad"]
[Date "2019.07.25"]
[Round "2.13"]
[White "Voinescu, David-Ioan"]
[Black "Zawadzka, Jolanta"]
[Result "0-1"]
[ECO "B44"]
[WhiteElo "2046"]
[BlackElo "2422"]
[Annotator "RC"]
[PlyCount "62"]
[EventDate "2019.07.24"]
[EventType "swiss"]
[EventCountry "ROU"]
[SourceTitle "playchess.com"]
[Source "ChessBase"]
[SourceQuality "1"]
[TimeControl "40/5400+30:900+30"]

1. e4 {[%emt 0:00:00]} c5 {[%emt 0:00:00]} 2. Nf3 {[%emt 0:00:00]} e6 {[%emt 0:00:00]} 3. d4 {[%emt 0:00:00]} cxd4 {[%emt 0:00:00]} 4. Nxd4 {[%emt 0:00:00]} Nc6 {[%emt 0:00:00]} 5. Nxc6 {[%emt 0:00:28]} bxc6 {[%emt 0:00:08]} 6. Bd3 {[%emt 0:00:15]} e5 {[%emt 0:00:34]} 7. O-O {[%emt 0:02:21]} Nf6 {[%emt 0:01:45]} 8. Qe2 {[%emt 0:01:52]} Bc5 {[%emt 0:02:38]} 9. b3 {[%emt 0:05:50]} O-O {[%emt 0:04:04]} 10. Bb2 {[%emt 0:01:21]} d6 {[%emt 0:06:23]} 11. Kh1 {[%emt 0:11:03]} Ng4 {[%emt 0:12:00]} 12. g3 {[%emt 0:10:08]} Nh6 {[%emt 0:10:14]} 13. f4 {[%emt 0:19:24]} Bh3 {[%emt 0:04:12]} 14. Nd2 {[%emt 0:06:00]} Bxf1 {[%emt 0:05:46]} 15. Rxf1 {[%emt 0:00:08]} exf4 {[%emt 0:03:42]} 16. gxf4 {[%emt 0:05:20]} Qh4 {[%emt 0:06:14]} 17. e5 {[%emt 0:23:48]} d5 {[%emt 0:06:44]} 18. b4 {[%emt 0:02:01]} Bb6 {[%emt 0:08:09]} 19. Nb3 {[%emt 0:00:53]} Rfe8 {[%emt 0:02:36]} 20. Nc5 {[%emt 0:00:56]} Re7 {[%emt 0:06:48]} 21. Rg1 {[%emt 0:02:16]} a5 {[%emt 0:09:02]} 22. a3 {[%emt 0:00:45]} axb4 {[%emt 0:00:44]} 23. axb4 {[%emt 0:00:03]} Bxc5 {[%emt 0:00:54]} 24. bxc5 {[%emt 0:00:05]} Ra4 {[%emt 0:00:54]} 25. f5 {[%emt 0:04:18]} Ng4 {[%emt 0:01:55]} 26. Rg3 {[%emt 0:00:45]} Rf4 {[%emt 0:02:22]} 27. Bc1 {[%emt 0:02:13]} Rf1+ {[%emt 0:00:59]} 28. Kg2 {[%emt 0:00:03]} Qxh2+ {[%emt 0:00:40]} 29. Kxf1 {[%emt 0:00:06]} Qxg3 {[%emt 0:00:08]} 30. f6 {[%emt 0:01:41]} Rxe5 {[%emt 0:00:26]} 31. Qg2 {[%emt 0:00:23]} Re1# {[%emt 0:00:08]} 0-1

[Event "12th Arad Open 2019"]
[Site "Arad"]
[Date "2019.07.25"]
[Round "2.16"]
[White "Banzea, Alexandru-Bogdan"]
[Black "Luca, Ionel"]
[Result "1-0"]
[ECO "B07"]
[WhiteElo "2405"]
[BlackElo "2039"]
[Annotator "RC"]
[PlyCount "75"]
[EventDate "2019.07.24"]
[EventType "swiss"]
[EventCountry "ROU"]
[SourceTitle "playchess.com"]
[Source "ChessBase"]
[SourceQuality "1"]
[TimeControl "40/5400+30:900+30"]

1. e4 {[%emt 0:00:00]} d6 {[%emt 0:00:26]} 2. d4 {[%emt 0:00:00]} Nf6 {[%emt 0:00:06]} 3. Nc3 {[%emt 0:00:00]} c6 {[%emt 0:00:05]} 4. f4 {[%emt 0:00:00]} Qa5 {[%emt 0:00:04]} 5. Bd3 {[%emt 0:00:01]} e5 {[%emt 0:00:06]} 6. Nf3 {[%emt 0:00:05]} Nbd7 {[%emt 0:00:05]} 7. O-O {[%emt 0:01:12]} Be7 {[%emt 0:07:48]} 8. Kh1 {[%emt 0:00:28]} O-O {[%emt 0:00:15]} 9. Be3 {[%emt 0:00:44]} Qc7 {[%emt 0:01:19]} 10. a4 {[%emt 0:01:27]} Rd8 {[%emt 0:12:39]} 11. Qe1 {[%emt 0:02:17]} Nh5 {[%emt 0:09:48]} 12. dxe5 {[%emt 0:04:47]} dxe5 {[%emt 0:00:27]} 13. f5 {[%emt 0:00:07]} Nf8 {[%emt 0:19:05]} 14. Bc4 {[%emt 0:00:55]} Bd7 {[%emt 0:03:59]} 15. g4 {[%emt 0:00:48]} Nf4 {[%emt 0:02:54]} 16. Nxe5 {[%emt 0:02:11]} Qxe5 {[%emt 0:01:52]} 17. Bxf4 {[%emt 0:00:10]} Qc5 {[%emt 0:00:44]} 18. Bb3 {[%emt 0:03:26]} Be8 {[%emt 0:04:28]} 19. Qg3 {[%emt 0:01:06]} Kh8 {[%emt 0:01:00]} 20. Rae1 {[%emt 0:00:21]} Rac8 {[%emt 0:01:54]} 21. g5 {[%emt 0:00:19]} Qa5 {[%emt 0:00:54]} 22. h4 {[%emt 0:12:28]} Nd7 {[%emt 0:06:03]} 23. h5 {[%emt 0:03:26]} Bf8 {[%emt 0:15:32]} 24. g6 {[%emt 0:03:59]} fxg6 {[%emt 0:04:31]} 25. hxg6 {[%emt 0:00:07]} Nf6 {[%emt 0:01:05]} 26. Qh4 {[%emt 0:00:46]} Bxg6 {[%emt 0:01:59]} 27. fxg6 {[%emt 0:00:14]} Qh5 {[%emt 0:01:04]} 28. Bg5 {[%emt 0:00:44]} Qxh4+ {[%emt 0:01:04]} 29. Bxh4 {[%emt 0:00:01]} Be7 {[%emt 0:00:20]} 30. Be6 {[%emt 0:00:49]} Ra8 {[%emt 0:00:38]} 31. e5 {[%emt 0:01:38]} Nd5 {[%emt 0:01:14]} 32. Bxe7 {[%emt 0:00:09]} Nxe7 {[%emt 0:00:08]} 33. gxh7 {[%emt 0:00:03]} Rd4 {[%emt 0:01:01]} 34. Re4 {[%emt 0:00:26]} Rad8 {[%emt 0:00:43]} 35. Rxd4 {[%emt 0:00:37]} Rxd4 {[%emt 0:00:08]} 36. Rf7 {[%emt 0:00:04]} Rh4+ {[%emt 0:00:32]} 37. Kg1 {[%emt 0:00:12]} Ng6 {[%emt 0:00:16]} 38. Bf5 {[%emt 0:00:14]} 1-0

[Event "12th Arad Open 2019"]
[Site "Arad"]
[Date "2019.07.25"]
[Round "2.22"]
[White "Breitkopf, Francisc"]
[Black "Gheorghiu, Calin"]
[Result "1-0"]
[ECO "C00"]
[WhiteElo "1994"]
[BlackElo "2345"]
[Annotator "RC"]
[PlyCount "115"]
[EventDate "2019.07.24"]
[EventType "swiss"]
[EventCountry "ROU"]
[SourceTitle "playchess.com"]
[Source "ChessBase"]
[SourceQuality "1"]
[TimeControl "40/5400+30:900+30"]

1. e4 {[%emt 0:00:01]} e6 {[%emt 0:00:00]} 2. c4 {[%emt 0:02:28]} c5 {[%emt 0:00:29]} 3. Nc3 {[%emt 0:00:27]} Nc6 {[%emt 0:00:27]} 4. d3 {[%emt 0:06:13]} g6 {[%emt 0:00:54]} 5. g3 Bg7 {[%emt 0:00:15]} 6. Bg2 {[%emt 0:13:16]} Nge7 {[%emt 0:00:09]} 7. Nge2 {[%emt 0:01:04]} O-O {[%emt 0:00:12]} 8. O-O {[%emt 0:00:29]} d6 {[%emt 0:00:27]} 9. Be3 {[%emt 0:07:25]} Nd4 {[%emt 0:07:54]} 10. Qd2 {[%emt 0:01:20]} Re8 {[%emt 0:00:26]} 11. Bh6 {[%emt 0:02:23]} Bh8 {[%emt 0:00:46]} 12. Nxd4 {[%emt 0:03:03]} cxd4 {[%emt 0:00:57]} 13. Ne2 {[%emt 0:01:03]} Bd7 {[%emt 0:03:38]} 14. b4 {[%emt 0:05:28]} a6 {[%emt 0:05:15]} 15. a4 {[%emt 0:01:35]} a5 {[%emt 0:02:52]} 16. b5 {[%emt 0:00:59]} Qb6 {[%emt 0:01:15]} 17. Qa2 {[%emt 0:07:40]} Rac8 {[%emt 0:04:05]} 18. Rac1 {[%emt 0:12:30]} Rc5 {[%emt 0:04:57]} 19. Rc2 {[%emt 0:05:09]} g5 {[%emt 0:03:23]} 20. h3 {[%emt 0:18:18]} Ng6 {[%emt 0:06:01]} 21. f4 {[%emt 0:01:14]} Bf6 {[%emt 0:05:31]} 22. Kh2 {[%emt 0:01:43]} e5 {[%emt 0:08:56]} 23. fxg5 {[%emt 0:01:35]} Be7 {[%emt 0:00:09]} 24. Ng1 {[%emt 0:00:37]} Qd8 {[%emt 0:01:35]} 25. Rcf2 {[%emt 0:01:23]} Be6 {[%emt 0:03:08]} 26. Qd2 {[%emt 0:00:08]} Kh8 {[%emt 0:01:03]} 27. h4 {[%emt 0:01:56]} Kg8 {[%emt 0:06:39]} 28. Bh3 {[%emt 0:00:28]} Nh8 {[%emt 0:01:43]} 29. Qe2 Qd7 {[%emt 0:00:52]} 30. Qh5 {[%emt 0:00:44]} Bd8 {[%emt 0:02:03]} 31. Bf5 {[%emt 0:00:42]} Ng6 {[%emt 0:00:16]} 32. Qg4 {[%emt 0:00:43]} Bxf5 {[%emt 0:05:33]} 33. Rxf5 {[%emt 0:00:06]} Re6 {[%emt 0:07:35]} 34. h5 {[%emt 0:00:37]} Nh8 {[%emt 0:01:36]} 35. Nf3 {[%emt 0:00:47]} Rc7 {[%emt 0:04:12]} 36. Nh4 {[%emt 0:00:02]} Be7 {[%emt 0:00:50]} 37. Qf3 {[%emt 0:00:58]} Qe8 {[%emt 0:00:29]} 38. Rf2 {[%emt 0:00:54]} Bd8 {[%emt 0:00:44]} 39. Qg4 {[%emt 0:00:09]} Qd7 {[%emt 0:00:47]} 40. Qh3 {[%emt 0:00:00]} Qc8 {[%emt 0:00:00]} 41. Qf1 {[%emt 0:02:01]} Rd7 {[%emt 0:03:48]} 42. Kg2 {[%emt 0:02:46]} Qc5 {[%emt 0:00:19]} 43. Nf3 {[%emt 0:01:33]} Qa3 {[%emt 0:00:21]} 44. Qd1 {[%emt 0:00:06]} Bb6 {[%emt 0:04:18]} 45. Nh2 {[%emt 0:00:59]} d5 {[%emt 0:06:00]} 46. cxd5 {[%emt 0:02:41]} Re8 {[%emt 0:00:13]} 47. Ng4 {[%emt 0:00:16]} Bd8 {[%emt 0:00:13]} 48. Nf6+ {[%emt 0:00:25]} Bxf6 {[%emt 0:00:05]} 49. gxf6 {[%emt 0:00:01]} Rc7 {[%emt 0:00:09]} 50. Rg5+ {[%emt 0:03:15]} Ng6 {[%emt 0:00:06]} 51. hxg6 {[%emt 0:00:13]} hxg6 {[%emt 0:00:18]} 52. Bg7 {[%emt 0:00:22]} Rc1 {[%emt 0:00:25]} 53. Rh5 {[%emt 0:03:09]} gxh5 {[%emt 0:02:31]} 54. Qxh5 {[%emt 0:00:01]} Rg1+ {[%emt 0:00:19]} 55. Kxg1 {[%emt 0:00:30]} Qc1+ {[%emt 0:00:07]} 56. Kg2 {[%emt 0:00:20]} Qh1+ {[%emt 0:00:41]} 57. Kxh1 {[%emt 0:02:22]} Rc8 {[%emt 0:00:05]} 58. Qh8# {[%emt 0:00:24]} 1-0

[Event "12th Arad Open 2019"]
[Site "Arad"]
[Date "2019.07.25"]
[Round "2.30"]
[White "Ardeleanu, Alin"]
[Black "Nedelcu, Teodor-Cosmin"]
[Result "1-0"]
[ECO "B20"]
[WhiteElo "2323"]
[BlackElo "1963"]
[Annotator "RC"]
[PlyCount "114"]
[EventDate "2019.07.24"]
[EventType "swiss"]
[EventCountry "ROU"]
[SourceTitle "playchess.com"]
[Source "ChessBase"]
[SourceQuality "1"]
[TimeControl "40/5400+30:900+30"]

1. e4 {[%emt 0:02:42]} c5 {[%emt 0:00:00]} 2. b3 {[%emt 0:02:01]} e6 {[%emt 0:00:00]} 3. Nf3 {[%emt 0:00:20]} Nc6 {[%emt 0:00:01]} 4. Bb2 {[%emt 0:01:22]} Nf6 {[%emt 0:00:26]} 5. e5 {[%emt 0:01:04]} Nd5 {[%emt 0:00:25]} 6. g3 {[%emt 0:02:39]} Be7 {[%emt 0:00:29]} 7. c4 {[%emt 0:01:07]} Nc7 {[%emt 0:00:43]} 8. Bg2 {[%emt 0:00:16]} O-O {[%emt 0:00:14]} 9. O-O {[%emt 0:00:09]} b6 {[%emt 0:00:09]} 10. d4 {[%emt 0:02:59]} cxd4 {[%emt 0:00:50]} 11. Nxd4 {[%emt 0:00:09]} Bb7 {[%emt 0:00:48]} 12. Nc3 {[%emt 0:01:29]} Rb8 {[%emt 0:00:21]} 13. Nxc6 {[%emt 0:25:56]} Bxc6 {[%emt 0:00:11]} 14. Bxc6 {[%emt 0:00:48]} dxc6 {[%emt 0:00:03]} 15. Qf3 {[%emt 0:01:21]} Qd2 {[%emt 0:00:38]} 16. Rab1 {[%emt 0:02:18]} Rbc8 {[%emt 0:04:12]} 17. Ne4 {[%emt 0:07:20]} Qa5 {[%emt 0:01:15]} 18. a3 {[%emt 0:10:24]} Rfd8 {[%emt 0:01:44]} 19. Rfd1 {[%emt 0:00:38]} Ne8 {[%emt 0:02:25]} 20. Kg2 {[%emt 0:01:53]} Qa6 {[%emt 0:01:44]} 21. h4 {[%emt 0:08:39]} Qb7 {[%emt 0:02:28]} 22. Rbc1 {[%emt 0:00:39]} c5 {[%emt 0:01:20]} 23. Nf6+ {[%emt 0:00:05]} gxf6 {[%emt 0:00:16]} 24. Qxb7 {[%emt 0:00:06]} Rc7 {[%emt 0:00:30]} 25. Qxc7 {[%emt 0:00:33]} Nxc7 {[%emt 0:00:06]} 26. exf6 {[%emt 0:00:17]} Bd6 {[%emt 0:00:38]} 27. Rd3 {[%emt 0:00:26]} Ne8 {[%emt 0:00:23]} 28. Rcd1 {[%emt 0:00:04]} Ra8 {[%emt 0:00:54]} 29. Rxd6 {[%emt 0:00:05]} Nxd6 {[%emt 0:00:01]} 30. Rxd6 {[%emt 0:00:08]} h6 {[%emt 0:00:25]} 31. a4 {[%emt 0:00:08]} h5 {[%emt 0:00:36]} 32. Rd7 {[%emt 0:00:10]} a6 {[%emt 0:00:41]} 33. Be5 {[%emt 0:00:07]} a5 {[%emt 0:03:13]} 34. Bc7 {[%emt 0:00:15]} Kh7 {[%emt 0:00:17]} 35. Bxb6 {[%emt 0:00:13]} Rb8 {[%emt 0:00:08]} 36. Bxc5 {[%emt 0:00:27]} Rxb3 {[%emt 0:00:01]} 37. Rxf7+ {[%emt 0:00:16]} Kg6 {[%emt 0:00:02]} 38. Ra7 {[%emt 0:00:13]} Kxf6 {[%emt 0:00:20]} 39. Rxa5 {[%emt 0:00:04]} e5 {[%emt 0:00:08]} 40. Be3 {[%emt 0:00:00]} Rc3 {[%emt 0:00:00]} 41. c5 {[%emt 0:00:23]} Ke6 {[%emt 0:00:27]} 42. Ra8 {[%emt 0:00:03]} Kd5 {[%emt 0:00:06]} 43. a5 {[%emt 0:00:07]} Kc6 {[%emt 0:00:10]} 44. a6 {[%emt 0:00:04]} Ra3 {[%emt 0:00:21]} 45. Re8 {[%emt 0:00:11]} Kd5 {[%emt 0:00:11]} 46. c6 Kxc6 {[%emt 0:00:10]} 47. Rxe5 {[%emt 0:00:11]} Rxa6 {[%emt 0:00:17]} 48. Rxh5 {[%emt 0:00:05]} Kd7 {[%emt 0:00:07]} 49. Re5 {[%emt 0:00:07]} Kd6 {[%emt 0:00:23]} 50. Bf4 {[%emt 0:00:05]} Kd7 {[%emt 0:00:02]} 51. h5 {[%emt 0:00:06]} Ra8 {[%emt 0:00:18]} 52. g4 {[%emt 0:00:07]} Rf8 {[%emt 0:00:03]} 53. Kg3 {[%emt 0:00:07]} Rh8 {[%emt 0:00:21]} 54. h6 {[%emt 0:00:04]} Rh7 {[%emt 0:00:07]} 55. g5 {[%emt 0:00:05]} Kd6 {[%emt 0:00:03]} 56. Re1+ {[%emt 0:00:08]} Kd5 {[%emt 0:00:24]} 57. g6 {[%emt 0:00:03]} Rh8 1-0

[Event "12th Arad Open 2019"]
[Site "Arad"]
[Date "2019.07.25"]
[Round "2.36"]
[White "Illes, Sandor-Ferenc"]
[Black "Talu, Mircea"]
[Result "0-1"]
[ECO "C47"]
[WhiteElo "1924"]
[BlackElo "2278"]
[Annotator "RC"]
[PlyCount "86"]
[EventDate "2019.07.24"]
[EventType "swiss"]
[EventCountry "ROU"]
[SourceTitle "playchess.com"]
[Source "ChessBase"]
[SourceQuality "1"]
[TimeControl "40/5400+30:900+30"]

1. e4 {[%emt 0:00:00]} e5 {[%emt 0:03:40]} 2. Nf3 {[%emt 0:00:00]} Nc6 {[%emt 0:00:06]} 3. Nc3 {[%emt 0:00:19]} Nf6 {[%emt 0:00:08]} 4. a3 {[%emt 0:00:34]} d6 {[%emt 0:10:39]} 5. d4 {[%emt 0:02:27]} Bg4 {[%emt 0:00:34]} 6. Bb5 {[%emt 0:04:03]} exd4 {[%emt 0:25:41]} 7. Qxd4 {[%emt 0:02:51]} a6 {[%emt 0:00:19]} 8. Bxc6+ {[%emt 0:00:29]} bxc6 {[%emt 0:00:07]} 9. e5 {[%emt 0:12:53]} dxe5 {[%emt 0:00:07]} 10. Qxd8+ {[%emt 0:01:09]} Rxd8 {[%emt 0:00:15]} 11. Nxe5 {[%emt 0:00:20]} Bf5 {[%emt 0:00:35]} 12. O-O {[%emt 0:05:24]} Rd6 {[%emt 0:01:35]} 13. Re1 {[%emt 0:10:08]} Be7 {[%emt 0:00:26]} 14. Be3 {[%emt 0:06:35]} Re6 {[%emt 0:04:31]} 15. Nf3 {[%emt 0:05:45]} c5 {[%emt 0:04:15]} 16. Ng5 {[%emt 0:04:25]} Rc6 {[%emt 0:00:18]} 17. Re2 {[%emt 0:13:34]} O-O {[%emt 0:03:21]} 18. f3 {[%emt 0:00:58]} Rb8 {[%emt 0:01:32]} 19. g4 {[%emt 0:01:15]} Bg6 {[%emt 0:00:47]} 20. b3 {[%emt 0:00:17]} a5 {[%emt 0:02:02]} 21. Nh3 {[%emt 0:08:29]} Bf8 {[%emt 0:31:11]} 22. Nf4 {[%emt 0:11:29]} c4 {[%emt 0:00:59]} 23. Nxg6 {[%emt 0:01:02]} hxg6 {[%emt 0:01:41]} 24. bxc4 {[%emt 0:01:16]} Rxc4 {[%emt 0:00:17]} 25. g5 {[%emt 0:01:48]} Rxc3 {[%emt 0:00:28]} 26. gxf6 {[%emt 0:00:06]} gxf6 {[%emt 0:00:09]} 27. Bd4 {[%emt 0:00:59]} Rxf3 {[%emt 0:00:19]} 28. Kg2 {[%emt 0:00:47]} Rxa3 {[%emt 0:00:47]} 29. Rxa3 {[%emt 0:00:34]} Bxa3 {[%emt 0:00:06]} 30. Bxf6 {[%emt 0:00:06]} Bf8 {[%emt 0:01:08]} 31. Re4 {[%emt 0:02:06]} Bg7 {[%emt 0:00:50]} 32. Bxg7 {[%emt 0:00:13]} Kxg7 {[%emt 0:00:06]} 33. Ra4 {[%emt 0:00:06]} Rb2 {[%emt 0:02:13]} 34. Rc4 {[%emt 0:01:27]} a4 {[%emt 0:00:19]} 35. Rxc7 {[%emt 0:00:09]} a3 {[%emt 0:00:04]} 36. Ra7 {[%emt 0:00:05]} Rxc2+ {[%emt 0:00:05]} 37. Kg3 {[%emt 0:00:06]} a2 {[%emt 0:00:32]} 38. h4 {[%emt 0:00:39]} Kf6 {[%emt 0:00:09]} 39. Ra5 {[%emt 0:00:11]} Ke6 {[%emt 0:00:22]} 40. Kg4 {[%emt 0:00:00]} Kd6 {[%emt 0:00:00]} 41. Ra8 {[%emt 0:03:57]} Kd5 {[%emt 0:00:27]} 42. h5 {[%emt 0:00:18]} gxh5+ {[%emt 0:00:06]} 43. Kxh5 {[%emt 0:00:04]} Kc4 {[%emt 0:00:09]} 0-1